bitfinex-derivatives/quotes_ETHF0:USTF0_20250524
["timestamp","ask_amount","ask_price","bid_price","bid_amount"]
[1748116117312,0.78332,2552.5,2552.3,0.6404]
[1748116117518,2.0205,2552.4,2552.3,0.78337]
[1748116122822,2.0205,2552.4,2552.2,0.78339]
[1748116123021,1.306,2552.3,2552.2,15.98539]
[1748116125017,0.7834,2552.2,2552.1,0.00588051]
[1748116125223,1.4446,2552.2,2552.1,0.00588051]
[1748116125423,19.0776,2552.2,2552.1,0.00588051]
[1748116126219,24.0776,2552.2,2552.1,0.00588051]
[1748116126523,24.0776,2552.2,2551.6,0.78357]
[1748116126524,0.78357,2551.7,2551.6,0.78357]
[1748116128123,2.16677,2551.7,2551.6,0.78357]
[1748116128423,1.3832,2551.7,2551.6,0.78357]
[1748116129923,1.45869626,2551.7,2551.6,0.78357]
[1748116131624,1.45869626,2551.7,2551.6,2.89777]
[1748116132129,0.07549626,2551.7,2551.6,2.89777]
[1748116140318,0.07549626,2551.7,2551.5,3.2078]
[1748116140523,2.84268,2551.6,2551.5,3.2078]
[1748116140719,2.84268,2551.6,2551.5,3.99141]
[1748116142328,2.0591,2551.6,2551.5,3.99141]
[1748116143027,1.3508,2551.6,2551.5,3.99141]
[1748116143228,1.3508,2551.6,2551.5,5.34251]
[1748116144028,0.07549626,2551.7,2551.6,0.78358]
[1748116144228,0.07549626,2551.7,2551.6,2.78208]
[1748116145133,2.77229,2551.9,2551.8,0.78352]
[1748116145427,1.46929,2551.9,2551.8,0.78352]
[1748116147130,1.42308,2552.0,2551.9,0.78349]
[1748116147333,0.78348,2552.0,2551.9,0.78349]
[1748116150133,0.7835,2551.9,2551.8,0.7835]
[1748116152433,0.78361,2551.6,2551.5,0.7836]
[1748116152834,0.78357,2551.7,2551.6,0.78356]
[1748116153031,1.48737,2551.7,2551.6,0.78356]
[1748116155538,0.78361,2551.6,2551.5,0.78359]
[1748116156236,1.48736,2551.7,2551.6,0.78358]
[1748116159343,1.56285626,2551.7,2551.6,0.78358]
[1748116159546,0.77929626,2551.7,2551.6,0.78358]
[1748116160145,1.56284626,2551.7,2551.6,0.78358]
[1748116160556,0.77929626,2551.7,2551.6,0.78358]
[1748116162042,0.07549626,2551.7,2551.6,3.99138]
[1748116163343,0.07549626,2551.7,2551.6,5.36408]
[1748116163649,0.07549626,2551.7,2551.6,2.15628]
[1748116163947,0.07549626,2551.7,2551.6,6.19853189]
[1748116164341,0.07549626,2551.7,2551.6,6.93169084]
[1748116164934,0.07549626,2551.7,2551.6,6.38231058]
[1748116165248,0.07549626,2551.7,2551.6,6.09723895]
[1748116165749,0.07549626,2551.7,2551.6,5.36408]
[1748116167259,0.07549626,2551.7,2551.6,2.15628]
[1748116167548,0.07549626,2551.7,2551.6,5.36408]
[1748116167847,0.07549626,2551.7,2551.6,6.03388]
[1748116172964,0.07549626,2551.7,2551.6,4.66118]
[1748116173458,1.39469626,2551.7,2551.6,4.66118]
[1748116177257,1.39469626,2551.7,2551.6,19.99318]
[1748116181772,1.39469626,2551.7,2551.6,20.67378]
[1748116182771,1.39469626,2551.7,2551.6,3.99138]
[1748116182972,1.39469626,2551.7,2551.6,0.78358]
[1748116184371,2.17824626,2551.7,2551.6,0.78358]
[1748116184671,0.78358,2551.6,2551.5,16.1156]
[1748116184870,2.17768,2551.6,2551.5,16.1156]
[1748116185973,2.17768,2551.6,2551.5,0.7836]
[1748116188875,1.3941,2551.6,2551.5,0.7836]
[1748116189375,2.17768,2551.6,2551.5,0.7836]
[1748116190773,2.25317626,2551.6,2551.5,0.7836]
[1748116191775,1.46959626,2551.6,2551.5,0.7836]
[1748116197181,1.46959626,2551.6,2551.5,1.4479]
[1748116197483,1.46959626,2551.6,2551.5,2.7429]
[1748116199485,1.46959626,2551.6,2551.5,5.9507]
[1748116200679,1.46959626,2551.6,2551.5,6.66888287]
[1748116200881,0.07549626,2551.6,2551.5,6.66888287]
[1748116202085,0.07549626,2551.6,2551.5,5.9507]
[1748116203789,0.07549626,2551.6,2551.5,3.2078]
[1748116203989,1.48999626,2551.6,2551.5,3.2078]
[1748116204189,2.27357626,2551.6,2551.5,3.2078]
[1748116204894,2.27357626,2551.6,2551.5,3.99141]
[1748116206790,2.27357626,2551.6,2551.5,0.78361]
[1748116213591,1.48999626,2551.6,2551.4,0.00588051]
[1748116213789,2.19071,2551.5,2551.4,0.00588051]
[1748116214093,2.19071,2551.5,2551.4,0.78952051]
[1748116214394,1.4071,2551.5,2551.4,0.78952051]
[1748116214587,0.07549626,2551.6,2551.5,0.78361]
[1748116214791,6.26e-06,2551.6,2551.5,17.36561]
[1748116215092,1.4071,2552.5,2552.4,0.78333]
[1748116215390,1.4071,2552.5,2552.4,1.08355991]
[1748116215591,2.1904,2552.5,2552.4,0.30022991]
[1748116215792,2.1904,2552.5,2552.4,0.94262991]
[1748116216588,2.1904,2552.5,2552.4,0.6424]
[1748116216791,2.1904,2552.5,2552.4,0.93198953]
[1748116217094,2.1904,2552.5,2552.4,1.65306124]
[1748116218992,2.1904,2552.5,2552.4,0.93198953]
[1748116220192,0.78337,2552.3,2552.2,15.21]
[1748116220392,0.78337,2552.3,2552.2,15.49889399]
[1748116220894,2.15637,2552.3,2552.2,15.49889399]
[1748116221394,2.15637,2552.3,2552.2,16.28229399]
[1748116221596,1.373,2552.3,2552.2,17.00942143]
[1748116221999,1.373,2552.3,2552.2,17.00932833]
[1748116223700,1.373,2552.3,2552.2,17.00212536]
[1748116224399,1.373,2552.3,2552.2,18.39512536]
[1748116224699,2.15637,2552.3,2552.2,18.39412536]
[1748116224910,2.15637,2552.3,2552.2,17.61072536]
[1748116225105,2.15637,2552.3,2552.2,0.72712744]
[1748116225596,0.7834,2552.2,2552.1,15.209]
[1748116225796,2.8254,2552.2,2552.1,15.99243]
[1748116226803,2.042,2552.2,2552.1,15.99243]
[1748116227100,2.042,2552.2,2552.1,15.99143]
[1748116231102,1.392,2552.2,2552.1,15.99143]
[1748116231402,1.392,2552.2,2552.1,17.33643]
[1748116235107,1.392,2552.2,2552.1,18.02303]
[1748116235505,1.46749626,2552.2,2552.1,18.02303]
[1748116236400,1.46749626,2552.2,2552.1,2.81503]
[1748116236703,1.46749626,2552.2,2552.1,18.02303]
[1748116236905,2.25089626,2552.2,2552.1,1.47003]
[1748116237104,2.25089626,2552.2,2552.1,15.8946]
[1748116237909,2.25089626,2552.2,2552.1,16.67803]
[1748116239807,1.46749626,2552.2,2552.1,16.67803]
[1748116242713,1.46749626,2552.2,2552.1,18.00203]
[1748116242914,1.46749626,2552.2,2552.1,18.7199439]
[1748116243816,1.46749626,2552.2,2552.1,18.00203]
[1748116246310,0.07549626,2552.2,2552.1,18.00203]
[1748116247109,0.07549626,2552.2,2552.1,19.45288239]
[1748116250230,0.07549626,2552.2,2552.1,18.73518895]
[1748116250530,0.07549626,2552.2,2552.1,19.283262]
[1748116250730,2.34854596,2552.6,2552.5,0.7833]
[1748116251028,2.34854596,2552.6,2552.5,16.53637305]
[1748116251527,0.00588051,2552.7,2552.6,0.78327]
[1748116251825,0.00588051,2552.7,2552.6,2.6774131]
[1748116252423,0.00588051,2552.7,2552.6,2.96821441]
[1748116253530,0.00588051,2552.7,2552.6,2.9749537]
[1748116255136,1.32168051,2552.7,2552.6,2.9749537]
[1748116255430,1.32168051,2552.7,2552.6,2.97419415]
[1748116257135,0.00588051,2552.7,2552.6,2.97419415]
[1748116258938,0.00588051,2552.7,2552.6,2.97093249]
[1748116260638,0.00588051,2552.7,2552.6,3.70409144]
[1748116261639,5.1e-07,2552.7,2552.6,3.70409144]
[1748116261932,5.1e-07,2552.7,2552.6,3.70357865]
[1748116262538,5.1e-07,2552.7,2552.6,3.42053166]
[1748116262838,5.1e-07,2552.7,2552.6,2.68737271]
[1748116264732,0.78305,2553.4,2552.6,2.68737271]
[1748116264733,17.626,2554.0,2553.5,0.783]
[1748116265033,3.9144,2553.6,2553.5,1.34060271]
[1748116265635,0.7066,2553.6,2553.5,1.34060271]
[1748116266035,2.6427,2553.6,2553.5,1.34060271]
[1748116267239,3.42567,2553.6,2553.5,1.34060271]
[1748116267440,2.6427,2553.6,2553.5,1.34060271]
[1748116268937,2.6427,2553.6,2553.5,1.33434194]
[1748116270145,2.6427,2553.6,2553.5,16.53434194]
[1748116272444,2.6427,2553.6,2553.5,16.53425986]
[1748116272740,1.9361,2553.6,2553.5,16.53425986]
[1748116274237,1.9361,2553.6,2553.5,16.52909405]
[1748116275944,1.9361,2553.6,2553.5,16.52908815]
[1748116279247,2.01159626,2553.6,2553.5,16.52908815]
[1748116279849,2.01159626,2553.6,2553.5,19.73688815]
[1748116281351,2.01159626,2553.6,2553.5,19.73742514]
[1748116283049,2.01159626,2553.6,2553.5,19.7375661]
[1748116284254,2.01827838,2553.6,2553.5,19.7375661]
[1748116284759,2.01827838,2553.6,2553.5,19.73777187]
[1748116286551,2.01827838,2553.6,2553.5,19.73821429]
[1748116286752,2.01827838,2553.6,2553.5,20.43721429]
[1748116287050,1.37677838,2553.6,2553.5,20.43721429]
[1748116287254,1.37677838,2553.6,2553.5,21.09301429]
[1748116288251,1.37677838,2553.6,2553.5,21.09314667]
[1748116290256,1.37677838,2553.6,2553.5,21.09330834]
[1748116290556,1.37677838,2553.6,2553.5,17.88550834]
[1748116290858,1.37677838,2553.6,2553.5,21.09330834]
[1748116291761,1.37677838,2553.6,2553.5,21.09339829]
[1748116293560,1.37677838,2553.6,2553.5,21.09378756]
[1748116295464,1.37677838,2553.6,2553.5,21.09414979]
[1748116297259,1.37677838,2553.6,2553.5,21.09441674]
[1748116297664,1.37677838,2553.6,2553.5,21.09471719]
[1748116298366,1.37677838,2553.6,2553.5,20.5456]
[1748116301669,1.37677838,2553.6,2553.5,17.3378]
[1748116306272,1.37677838,2553.6,2553.5,20.5456]
[1748116307373,1.37677838,2553.6,2553.5,21.11051199]
[1748116307566,1.37677838,2553.6,2553.5,17.90271199]
[1748116307766,1.37677838,2553.6,2553.5,21.11051746]
[1748116308474,1.37677838,2553.6,2553.5,5.91051746]
[1748116308675,1.37677838,2553.6,2553.5,21.10051746]
[1748116311280,1.37677838,2553.6,2553.5,21.10150907]
[1748116311484,1.37677838,2553.6,2553.5,21.09680374]
[1748116311682,8.38e-06,2553.6,2553.5,21.09680374]
[1748116311883,8.38e-06,2553.6,2553.5,22.47760374]
[1748116312473,0.07550464,2553.6,2553.5,22.47760374]
[1748116312782,4.64e-06,2553.6,2553.5,22.47760374]
[1748116312982,4.64e-06,2553.6,2553.5,22.47673776]
[1748116314479,4.64e-06,2553.6,2553.5,22.47145938]
[1748116314875,0.6814,2554.3,2553.5,27.47126726]
[1748116315087,1.3583,2554.2,2554.1,0.78281]
[1748116315287,1.3583,2554.2,2554.1,16.51667726]
[1748116316187,1.3583,2554.2,2554.1,16.51643235]
[1748116318291,1.3583,2554.2,2554.1,16.5161884]
[1748116319390,0.0038812,2554.4,2554.3,0.78275]
[1748116319691,1.4151812,2554.4,2554.3,4.5449284]
[1748116319895,1.4151812,2554.4,2554.3,5.2163284]
[1748116320189,1.4151812,2554.4,2554.3,5.21577692]
[1748116321089,2.1979012,2554.4,2554.3,0.55382692]
[1748116321385,2.1979012,2554.4,2554.3,0.5537527]
[1748116321785,10.4057012,2554.4,2554.3,0.5537527]
[1748116321986,0.78278,2554.2,2554.1,0.73116835]
[1748116322187,0.78278,2554.2,2554.1,1.51397835]
[1748116322391,0.78278,2554.2,2554.1,0.78281]
[1748116323794,2.10547,2554.3,2554.2,0.78278]
[1748116323994,0.78279,2554.2,2554.1,0.78279]
[1748116324693,2.10547,2554.3,2554.2,0.78278]
[1748116325086,3.46937,2554.3,2554.2,0.78278]
[1748116325388,2.6866,2554.3,2554.2,0.78278]
[1748116325893,3.46935,2554.3,2554.2,0.78278]
[1748116326395,2.6866,2554.3,2554.2,0.78278]
[1748116327905,3.46935,2554.3,2554.2,0.78278]
[1748116328160,2.6866,2554.3,2554.2,0.78278]
[1748116328996,0.7828,2554.2,2554.1,0.78279]
[1748116329297,2.1764,2554.2,2554.1,0.78279]
[1748116329795,2.25189626,2554.2,2554.1,0.78279]
[1748116330693,0.78284,2554.1,2554.0,0.78283]
[1748116330894,2.17644,2554.1,2554.0,0.78283]
[1748116331290,0.78284,2554.0,2553.9,3.99065]
[1748116331496,2.84524,2554.0,2553.9,3.99065]
[1748116332091,2.0624,2554.0,2553.9,3.99065]
[1748116333298,2.84524,2554.0,2553.9,3.99065]
[1748116335405,2.84524,2554.0,2553.9,0.78285]
[1748116340905,2.92073626,2554.0,2553.9,0.78285]
[1748116343306,0.7829,2553.8,2553.7,0.78292]
[1748116344107,2.0841,2553.8,2553.7,0.78292]
[1748116346208,2.0841,2553.8,2553.7,1.51079028]
[1748116347110,1.3012,2553.8,2553.7,2.21289028]
[1748116347408,3.95209626,2554.0,2553.9,0.78287]
[1748116347909,4.73495626,2554.0,2553.9,0.78287]
[1748116348409,0.78287,2553.9,2553.8,2.20339]
[1748116349011,2.07397,2553.9,2553.8,2.20339]
[1748116349210,2.07397,2553.9,2553.8,2.93126028]
[1748116352010,2.07397,2553.9,2553.8,2.14837028]
[1748116352211,2.07397,2553.9,2553.8,0.72787028]
[1748116353010,7.07397,2553.9,2553.8,0.72787028]
[1748116353213,24.69397,2553.9,2553.8,0.72787028]
[1748116353412,0.78297,2553.6,2553.5,0.73116835]
[1748116353905,0.78303,2553.4,2553.3,4.65032051]
[1748116354912,0.78303,2553.4,2553.3,4.95568749]
[1748116355604,1.3005,2553.6,2553.3,4.17264749]
[1748116355812,2.08348,2553.6,2553.5,0.783]
[1748116356111,2.08348,2553.6,2553.5,1.08836698]
[1748116356311,2.08348,2553.6,2553.5,0.783]
[1748116357012,2.08348,2553.6,2553.5,1.08466]
[1748116357911,1.3005,2553.6,2553.4,2.1949]
[1748116358114,2.0956,2553.5,2553.4,2.1949]
[1748116358416,2.0956,2553.5,2553.4,2.49651368]
[1748116359717,2.0956,2553.5,2553.4,3.06130716]
[1748116360114,2.0956,2553.5,2553.4,3.05483062]
[1748116362114,2.0956,2553.5,2553.4,3.05471922]
[1748116362310,2.0956,2553.5,2553.4,2.76031028]
[1748116362515,2.0956,2553.5,2553.4,3.04785119]
[1748116362720,2.0956,2553.5,2553.4,2.26485119]
[1748116363018,2.0956,2553.5,2553.4,0.56541028]
[1748116363818,0.78303,2553.4,2553.3,1.44252051]
[1748116364019,2.19513,2553.4,2553.3,1.99596573]
[1748116365620,2.19513,2553.4,2553.3,2.73688294]
[1748116366022,1.4121,2553.4,2553.3,3.04645065]
[1748116366321,1.4121,2553.4,2553.3,4.32995065]
[1748116366720,0.78299,2553.6,2553.5,0.783]
[1748116366922,2.15667,2553.6,2553.5,1.33644522]
[1748116368120,1.3737,2553.6,2553.5,1.33644522]
[1748116368515,2.15667,2553.6,2553.5,1.33644522]
[1748116369015,2.15667,2553.6,2553.5,1.33646897]
[1748116370824,2.15667,2553.6,2553.5,1.33664905]
[1748116371216,2.15667,2553.6,2553.5,1.64042538]
[1748116371418,2.23216626,2553.6,2553.5,1.64042538]
[1748116372116,2.23216626,2553.6,2553.5,1.33664905]
[1748116372520,1.44919626,2553.6,2553.5,1.63581319]
[1748116373512,1.44919626,2553.6,2553.5,1.3367704]
[1748116374225,2.23216626,2553.6,2553.5,1.3367704]
[1748116375226,1.44919626,2553.6,2553.5,1.63587137]
[1748116375824,2.23216626,2553.6,2553.5,1.63587137]
[1748116376026,2.23216626,2553.6,2553.5,1.63597876]
[1748116376926,4.65699626,2553.6,2553.3,0.65948051]
[1748116377121,0.7833,2552.5,2552.4,3.12671678]
[1748116377322,0.78332,2552.5,2552.0,3.90839598]
[1748116377527,3.99118,2552.3,2552.0,3.90839598]
[1748116377729,3.2078,2552.3,2552.0,3.90839598]
[1748116378026,1.3246,2552.5,2552.1,15.16]
[1748116378227,0.00588051,2552.4,2552.1,15.16]
[1748116378618,0.00588051,2552.4,2552.1,15.90841394]
[1748116378830,0.00588051,2552.4,2552.3,0.78336]
[1748116379326,0.00588051,2552.4,2552.3,5.78336]
[1748116379627,0.00588051,2552.4,2552.3,5.6581]
[1748116379826,0.00588051,2552.4,2552.3,6.40651394]
[1748116380025,0.00588051,2552.4,2552.3,8.47267394]
[1748116380427,0.00588051,2552.4,2552.3,23.63467394]
[1748116382729,0.00588051,2552.4,2552.3,26.84247394]
[1748116385531,0.08137677,2552.4,2552.3,26.84247394]
[1748116387339,0.08137677,2552.4,2552.3,21.84247394]
[1748116387540,0.08137677,2552.4,2552.3,18.63467394]
[1748116387743,0.08137677,2552.4,2552.3,21.84247394]
[1748116393143,1.3503,2552.8,2552.7,0.78324]
[1748116393441,1.3503,2552.8,2552.7,19.15404]
[1748116394837,1.3503,2552.8,2552.7,20.53624]
[1748116395043,1.3503,2552.8,2552.7,21.27796458]
[1748116399748,1.42579626,2552.8,2552.7,21.27796458]
[1748116405646,6.26e-06,2552.8,2552.7,26.27796458]
[1748116407844,6.26e-06,2552.8,2552.7,26.82581026]
[1748116408352,6.26e-06,2552.8,2552.7,21.82581026]
[1748116409151,6.26e-06,2552.8,2552.7,21.82597566]
[1748116409651,6.26e-06,2552.8,2552.7,21.82592677]
[1748116410153,6.26e-06,2552.8,2552.7,23.28724141]
[1748116410756,6.26e-06,2552.8,2552.7,23.28716766]
[1748116412558,6.26e-06,2552.8,2552.7,23.28712209]
[1748116413060,6.26e-06,2552.8,2552.7,22.73927922]
[1748116416561,6.26e-06,2552.8,2552.7,6.19407922]
[1748116416764,6.26e-06,2552.8,2552.7,19.89376458]
[1748116417166,1.33150626,2552.8,2552.7,19.89376458]
[1748116420269,1.33150626,2552.8,2552.7,16.68596458]
[1748116420467,1.33150626,2552.8,2552.7,19.89376458]
[1748116421870,1.33150626,2552.8,2552.7,4.73276458]
[1748116422063,1.33150626,2552.8,2552.7,19.89376458]
[1748116422670,1.33150626,2552.8,2552.7,4.73276458]
[1748116423166,1.33150626,2552.8,2552.7,19.89376458]
[1748116423559,1.33150626,2552.8,2552.7,4.73276458]
[1748116423758,1.33150626,2552.8,2552.7,19.89376458]
[1748116425372,0.0038812,2553.0,2552.9,0.78318]
[1748116425568,0.664,2553.4,2553.3,0.78306]
[1748116425864,0.664,2553.4,2553.3,15.94406]
[1748116426070,0.664,2553.4,2553.3,0.78306]
[1748116426272,0.664,2553.4,2553.3,15.94406]
[1748116426474,0.664,2553.4,2553.3,16.22643953]
[1748116427072,0.664,2553.4,2553.3,16.96816411]
[1748116427275,0.664,2553.4,2553.3,17.52198649]
[1748116427566,0.664,2553.4,2553.3,17.23960696]
[1748116428476,2.6832,2553.4,2553.3,17.23960696]
[1748116429377,2.75869626,2553.4,2553.3,17.23960696]
[1748116430180,2.75869626,2553.4,2553.3,17.24001576]
[1748116431675,2.05139626,2553.4,2553.3,17.24001576]
[1748116431981,2.05139626,2553.4,2553.3,17.2400128]
[1748116432381,1.38739626,2553.4,2553.3,17.2400128]
[1748116432576,0.07549626,2553.4,2553.3,17.2400128]
[1748116432784,0.07549626,2553.4,2553.3,18.6588128]
[1748116433780,1.43399626,2553.4,2553.3,18.65861181]
[1748116435479,1.43399626,2553.4,2553.3,18.65845128]
[1748116436885,1.43399626,2553.4,2553.3,21.86625128]
[1748116437180,1.43399626,2553.4,2553.3,21.86613509]
[1748116437389,1.43399626,2553.4,2553.3,22.17077358]
[1748116437980,0.07549626,2553.4,2553.3,22.17077358]
[1748116438383,0.07549626,2553.4,2553.3,22.90171046]
[1748116438894,0.07549626,2553.4,2553.3,22.89120016]
[1748116439488,0.07549626,2553.4,2553.3,7.73020016]
[1748116439785,0.07549626,2553.4,2553.3,22.89720016]
[1748116440496,0.07549626,2553.4,2553.3,6.31140016]
[1748116440690,0.07549626,2553.4,2553.3,21.47840016]
[1748116441388,1.47009626,2553.4,2553.3,21.47840016]
[1748116441590,1.47009626,2553.4,2553.3,20.74746328]
[1748116442095,1.47009626,2553.4,2553.3,20.74684855]
[1748116443100,1.47009626,2553.4,2553.3,5.57984855]
[1748116443397,1.47009626,2553.4,2553.3,20.74684855]
[1748116443800,1.47009626,2553.4,2553.3,20.7397141]
[1748116445603,1.47009626,2553.4,2553.3,5.56759271]
[1748116445801,1.47009626,2553.4,2553.3,20.73459271]
[1748116447400,1.47009626,2553.4,2553.3,20.73457789]
[1748116448600,1.47009626,2553.4,2553.3,21.37947789]
[1748116449102,1.47009626,2553.4,2553.3,21.37956044]
[1748116452706,1.47009626,2553.4,2553.3,21.37853613]
[1748116453507,1.47009626,2553.4,2553.3,21.09191243]
[1748116454405,1.47009626,2553.4,2553.3,21.09195834]
[1748116455205,1.47009626,2553.4,2553.3,20.54348458]
[1748116455504,7.25312626,2553.4,2553.3,0.74172458]
[1748116455705,7.25312626,2553.4,2553.3,15.90772458]
[1748116455706,10.46092626,2553.4,2553.3,15.90772458]
[1748116456605,10.46092626,2553.4,2553.3,15.166]
[1748116457105,10.46092626,2553.4,2553.3,15.94906]
[1748116460210,4.67789626,2553.4,2553.3,15.94906]
[1748116460399,1.47009626,2553.4,2553.3,15.94906]
[1748116461703,0.07549626,2553.4,2553.3,15.94906]
[1748116461893,0.07549626,2553.4,2553.3,17.28116]
[1748116462098,0.07549626,2553.4,2553.3,18.02013088]
[1748116462604,0.07549626,2553.4,2553.3,18.32193355]
[1748116463307,0.07549626,2553.4,2553.3,18.32191947]
[1748116464009,0.07549626,2553.4,2553.3,19.05285635]
[1748116464906,0.07549626,2553.4,2553.3,58.52685635]
[1748116465108,0.07549626,2553.4,2553.3,57.79591947]
[1748116466108,0.07549626,2553.4,2553.3,42.62991947]
[1748116466408,0.07549626,2553.4,2553.3,57.78891947]
[1748116466909,0.07549626,2553.4,2553.3,58.43351824]
[1748116467507,0.07549626,2553.4,2553.3,59.1642863]
[1748116468507,0.07549626,2553.4,2553.3,59.16430675]
[1748116469508,0.07549626,2553.4,2553.3,62.37210675]
[1748116470206,0.07549626,2553.4,2553.3,62.06949894]
[1748116470412,0.07549626,2553.4,2553.3,47.21308974]
[1748116470611,0.07549626,2553.4,2553.3,62.37208974]
[1748116471212,0.07549626,2553.4,2553.3,47.21308974]
[1748116471414,0.07549626,2553.4,2553.3,61.03998974]
[1748116472008,0.07549626,2553.4,2553.3,61.04002842]
[1748116473611,0.07549626,2553.4,2553.3,45.88102842]
[1748116473816,0.75999626,2553.4,2553.3,61.03904974]
[1748116474318,0.75999626,2553.4,2553.3,45.88104974]
[1748116474508,0.75999626,2553.4,2553.3,61.03904974]
[1748116474704,0.75999626,2553.4,2553.3,60.30828168]
[1748116474914,0.75999626,2553.4,2553.3,45.15028168]
[1748116475112,0.75999626,2553.4,2553.3,60.30828168]
[1748116475515,0.75999626,2553.4,2553.3,60.30117139]
[1748116476010,0.07549626,2553.4,2553.3,60.30117139]
[1748116476919,0.07549626,2553.4,2553.3,61.66687139]
[1748116477316,0.07549626,2553.4,2553.3,62.22260495]
[1748116477518,0.07549626,2553.4,2553.3,62.22360548]
[1748116477717,0.07549626,2553.4,2553.3,47.06460548]
[1748116477911,0.07549626,2553.4,2553.3,62.22360548]
[1748116478218,0.07549626,2553.4,2553.3,62.22426896]
[1748116479118,0.07549626,2553.4,2553.3,62.22436116]
[1748116480419,0.07549626,2553.4,2553.3,47.06536116]
[1748116480621,0.07549626,2553.4,2553.3,62.95512922]
[1748116481016,0.07549626,2553.4,2553.3,62.95535799]
[1748116482726,0.07549626,2553.4,2553.3,62.95027867]
[1748116484427,0.07549626,2553.4,2553.3,62.95031943]
[1748116486226,0.07549626,2553.4,2553.3,62.95026939]
[1748116487623,0.07549626,2553.4,2553.3,62.21950133]
[1748116488127,0.07549626,2553.4,2553.3,62.21955565]
[1748116489325,0.07549626,2553.4,2553.3,63.19520192]
[1748116489729,0.07549626,2553.4,2553.3,63.19545437]
[1748116491629,0.07549626,2553.4,2553.3,63.19587093]
[1748116493333,0.07549626,2553.4,2553.3,63.1959079]
[1748116494334,0.07549626,2553.4,2553.3,63.68157627]
[1748116495025,0.07549626,2553.4,2553.3,63.6814412]
[1748116495528,0.07549626,2553.4,2553.3,62.22012656]
[1748116496831,0.07549626,2553.4,2553.3,62.20825255]
[1748116501733,0.07549626,2553.4,2553.3,62.20817187]
[1748116502827,0.07549626,2553.4,2553.3,61.92617908]
[1748116505233,0.07549626,2553.4,2553.3,61.92190901]
[1748116506736,1.4153,2553.7,2553.6,0.78297]
[1748116506934,1.4153,2553.7,2553.6,4.54034813]
[1748116507232,1.4153,2553.7,2553.6,4.54037246]
[1748116508029,1.4153,2553.7,2553.6,19.69337246]
[1748116508735,1.4153,2553.7,2553.6,20.43236571]
[1748116510634,1.4153,2553.7,2553.6,20.432405]
[1748116514147,1.4153,2553.7,2553.6,20.43250151]
[1748116515840,1.4153,2553.7,2553.6,21.10227993]
[1748116516041,1.4153,2553.7,2553.6,22.43007993]
[1748116516232,0.7064,2554.0,2553.9,0.78287]
[1748116516541,0.7064,2554.0,2553.9,4.54040905]
[1748116516737,2.34406937,2554.2,2554.1,0.78281]
[1748116516938,2.34406937,2554.2,2554.1,16.48454905]
[1748116517749,2.34406937,2554.2,2554.1,16.48417333]
[1748116517950,2.34406937,2554.2,2554.1,16.78818071]
[1748116519349,2.34406937,2554.2,2554.1,16.77764634]
[1748116519548,2.41956563,2554.2,2554.1,16.77764634]
[1748116521147,2.41956563,2554.2,2554.1,16.77702623]
[1748116524543,2.41956563,2554.2,2554.1,16.7764917]
[1748116524743,0.07549626,2554.2,2554.1,18.24718191]
[1748116525551,0.07549626,2554.2,2554.1,18.24707872]
[1748116526350,0.07549626,2554.2,2554.1,18.24704333]
[1748116527238,1.3683,2554.3,2554.2,0.78278]
[1748116527447,1.3683,2554.3,2554.2,4.83212312]
[1748116527750,1.3683,2554.3,2554.2,6.22122312]
[1748116528250,1.3683,2554.3,2554.2,6.960194]
[1748116529141,1.3683,2554.3,2554.2,20.714094]
[1748116529850,1.3683,2554.3,2554.2,20.71358364]
[1748116531552,1.3683,2554.3,2554.2,20.70647523]
[1748116532655,1.3683,2554.3,2554.2,5.56347523]
[1748116532850,1.3683,2554.3,2554.2,20.70547523]
[1748116533349,1.3683,2554.3,2554.2,20.15713142]
[1748116533652,1.3683,2554.3,2554.2,20.70555217]
[1748116534646,1.44379626,2554.3,2554.2,20.70555217]
[1748116535053,1.44379626,2554.3,2554.2,20.70552947]
[1748116535648,0.07549626,2554.3,2554.2,20.70552947]
[1748116535855,0.07549626,2554.3,2554.2,22.05092947]
[1748116536457,0.07549626,2554.3,2554.2,6.90892947]
[1748116536651,0.07549626,2554.3,2554.2,21.5025275]
[1748116536857,0.07549626,2554.3,2554.2,21.50251876]
[1748116537054,0.07549626,2554.3,2554.2,21.21695088]
[1748116539461,0.07549626,2554.3,2554.2,21.94698173]
[1748116543662,0.07549626,2554.3,2554.2,21.21695088]
[1748116544757,0.07549626,2554.3,2554.2,61.65017182]
[1748116549767,0.07549626,2554.3,2554.2,62.19820072]
[1748116550959,0.07549626,2554.3,2554.2,61.22197978]
[1748116551169,0.07549626,2554.3,2554.2,61.22209216]
[1748116551763,1.3583,2554.6,2554.5,0.78269]
[1748116551972,2.34406937,2554.9,2554.8,0.7826]
[1748116552171,2.34406937,2554.9,2554.8,19.68054128]
[1748116552769,2.34406937,2554.9,2554.8,20.33584128]
[1748116552969,2.34406937,2554.9,2554.8,20.33527636]
[1748116553164,1.4075,2555.0,2554.9,0.78257]
[1748116553360,1.4075,2555.0,2554.9,1.63104133]
[1748116554369,1.4075,2555.0,2554.9,2.37001221]
[1748116554571,1.4075,2555.0,2554.9,2.35859451]
[1748116555366,1.4075,2555.0,2554.9,17.49959451]
[1748116556269,1.4075,2555.0,2554.9,17.49952257]
[1748116556470,1.4075,2555.0,2554.9,17.49473133]
[1748116556866,1.4075,2555.0,2554.9,16.94771001]
[1748116558273,1.4075,2555.0,2554.9,1.80661916]
[1748116558475,1.4075,2555.0,2554.9,16.93661916]
[1748116558669,1.4075,2555.0,2554.9,1.80661916]
[1748116558869,1.4075,2555.0,2554.9,16.93661916]
[1748116559473,1.4075,2555.0,2554.9,1.80661916]
[1748116559673,1.4075,2555.0,2554.9,16.93661916]
[1748116559977,1.4075,2555.0,2554.9,1.80655561]
[1748116560176,1.4075,2555.0,2554.9,16.93655561]
[1748116560373,2.19004,2555.0,2554.9,1.02398561]
[1748116560676,10.39784,2555.0,2554.9,15.86897088]
[1748116560879,0.7826,2554.8,2554.7,0.73719555]
[1748116561076,0.7826,2554.8,2554.7,15.86719555]
[1748116561273,5.7826,2554.8,2554.7,0.73719555]
[1748116561477,5.7826,2554.8,2554.7,15.86719555]
[1748116561478,6.4806,2554.8,2554.7,15.86719555]
[1748116561781,6.4806,2554.8,2554.7,16.64982555]
[1748116561979,6.4806,2554.8,2554.7,15.91851051]
[1748116562382,6.4806,2554.8,2554.7,0.78851051]
[1748116562678,6.4806,2554.8,2554.7,15.91851051]
[1748116562879,6.4806,2554.8,2554.7,15.13588051]
[1748116563682,6.4806,2554.8,2554.7,0.00588051]
[1748116563882,6.4806,2554.8,2554.7,15.13588051]